bitfinex/quotes_BTCUSD_20251230
["timestamp","ask_amount","ask_price","bid_price","bid_amount"]
[1767073609756,0.01073467,87204.0,87192.0,0.02294894]
[1767073610002,0.01073467,87203.0,87193.0,0.01146881]
[1767073610199,0.0114671,87206.0,87194.0,0.01146867]
[1767073610383,0.01073441,87205.0,87194.0,0.01146867]
[1767073610556,0.01073441,87204.0,87194.0,0.01146867]
[1767073610758,0.01073441,87203.0,87194.0,0.01146867]
[1767073610958,0.0114671,87206.0,87194.0,0.01146867]
[1767073611158,0.01073426,87205.0,87194.0,0.01146867]
[1767073611382,0.01073426,87204.0,87194.0,0.01146867]
[1767073611626,0.01073426,87203.0,87194.0,0.01146867]
[1767073611801,0.0114671,87206.0,87194.0,0.01146867]
[1767073612014,0.01073416,87205.0,87194.0,0.01146867]
[1767073612262,0.01073416,87204.0,87193.0,0.01146881]
[1767073612472,0.01073416,87203.0,87193.0,0.01146881]
[1767073612652,0.0114671,87206.0,87194.0,0.01146867]
[1767073612942,0.01146736,87204.0,87194.0,0.01148]
[1767073613146,0.01073406,87203.0,87194.0,0.01148]
[1767073613304,0.01146736,87204.0,87194.0,0.01148]
[1767073613508,0.01073393,87203.0,87194.0,0.01148]
[1767073613731,0.01146736,87204.0,87194.0,0.01148]
[1767073613969,0.01073397,87203.0,87194.0,0.01148]
[1767073614128,0.01146736,87204.0,87194.0,0.01148]
[1767073614325,0.01073392,87203.0,87194.0,0.01148]
[1767073614533,0.01146736,87204.0,87194.0,0.01148]
[1767073614764,0.01073392,87203.0,87194.0,0.01148]
[1767073614964,0.01146736,87204.0,87194.0,0.01148]
[1767073615159,0.01073393,87203.0,87194.0,0.01148]
[1767073615478,0.01146736,87204.0,87194.0,0.01148]
[1767073615642,0.01146762,87202.0,87194.0,0.01148]
[1767073616641,0.01146749,87203.0,87194.0,0.01148]
[1767073616874,0.01073337,87202.0,87194.0,0.01148]
[1767073617052,0.01146749,87203.0,87194.0,0.01148]
[1767073617272,0.01146802,87199.0,87184.0,0.06881977]
[1767073617442,0.01146775,87201.0,87188.0,0.01146946]
[1767073618285,0.01146788,87200.0,87188.0,0.01146946]
[1767073618867,0.01146802,87199.0,87187.0,0.02294959]
[1767073619100,0.01146788,87200.0,87188.0,0.01146946]
[1767073619258,0.01146775,87201.0,87189.0,0.01146933]
[1767073622238,0.01146762,87202.0,87190.0,0.0114692]
[1767073623321,0.02294736,87204.0,87190.0,0.0114692]
[1767073623521,0.02219957,87203.0,87190.0,0.0114692]
[1767073623703,0.0221997,87202.0,87190.0,0.0114692]
[1767073623909,0.01146749,87203.0,87191.0,0.01146907]
[1767073624089,0.01073197,87202.0,87191.0,0.06881436]
[1767073624294,0.01148,87204.0,87193.0,0.01146881]
[1767073624495,0.01073187,87203.0,87193.0,0.01146881]
[1767073624719,0.01073187,87202.0,87194.0,0.01146867]
[1767073624927,0.01148,87204.0,87194.0,0.01146867]
[1767073625148,0.01073187,87203.0,87193.0,0.01146881]
[1767073625460,0.01073187,87202.0,87193.0,0.01146881]
[1767073625666,0.01148,87204.0,87193.0,0.01146881]
[1767073625866,0.01073107,87203.0,87193.0,0.01146881]
[1767073626067,0.01073107,87202.0,87193.0,0.01146881]
[1767073626273,0.02294736,87204.0,87192.0,0.01146894]
[1767073626498,0.01073094,87203.0,87192.0,0.01146894]
[1767073626633,0.01073094,87202.0,87192.0,0.01146894]
[1767073626968,0.02294736,87204.0,87191.0,0.01146907]
[1767073627135,0.02294736,87204.0,87192.0,0.01146894]
[1767073627136,0.01073094,87203.0,87192.0,0.01146894]
[1767073627330,0.01073094,87202.0,87192.0,0.01146894]
[1767073627634,0.02294736,87204.0,87192.0,0.01146894]
[1767073627831,0.01073084,87203.0,87192.0,0.01146894]
[1767073628033,0.01073084,87202.0,87191.0,0.01146907]
[1767073628337,0.02294736,87204.0,87192.0,0.01146894]
[1767073628538,0.02219756,87203.0,87191.0,0.01146907]
[1767073628741,0.01073007,87202.0,87191.0,0.01146907]
[1767073628936,0.02294736,87204.0,87191.0,0.01146907]
[1767073629138,0.01072722,87203.0,87191.0,0.01146907]
[1767073629359,0.01072722,87202.0,87191.0,0.01146907]
[1767073629565,0.02294736,87204.0,87191.0,0.01146907]
[1767073629894,0.01072712,87203.0,87191.0,0.01146907]
[1767073630077,0.01072712,87202.0,87192.0,0.01146894]
[1767073630287,0.01146749,87203.0,87191.0,0.01146907]
[1767073630523,0.0107273,87202.0,87192.0,0.01146894]
[1767073630722,0.02294736,87204.0,87192.0,0.01146894]
[1767073630896,0.01072731,87203.0,87192.0,0.01146894]
[1767073631118,0.01072731,87202.0,87192.0,0.01146894]
[1767073631262,0.01146749,87203.0,87191.0,0.01146907]
[1767073631465,0.01072746,87202.0,87191.0,0.01146907]
[1767073631684,0.02294736,87204.0,87191.0,0.01146907]
[1767073631884,0.01072746,87203.0,87191.0,0.01146907]
[1767073632081,0.01072746,87202.0,87191.0,0.01146907]
[1767073632248,0.02294736,87204.0,87191.0,0.01146907]
[1767073632631,0.01072765,87203.0,87192.0,0.01146894]
[1767073632758,0.01072765,87202.0,87192.0,0.01146894]
[1767073632962,0.02294736,87204.0,87192.0,0.01146894]
[1767073633281,0.01072765,87203.0,87193.0,0.01146881]
[1767073633460,0.01072765,87202.0,87193.0,0.01146881]
[1767073633810,0.01148,87204.0,87193.0,0.01146881]
[1767073634001,0.01072794,87203.0,87193.0,0.01146881]
[1767073634302,0.01072794,87202.0,87193.0,0.01146881]
[1767073634600,0.01148,87204.0,87193.0,0.01146881]
[1767073634785,0.01072823,87203.0,87193.0,0.01146881]
[1767073634983,0.01072823,87202.0,87192.0,0.01146894]
[1767073635161,0.01148,87204.0,87193.0,0.01146881]
[1767073635364,0.01148,87204.0,87192.0,0.01146894]
[1767073635365,0.01072854,87203.0,87192.0,0.01146894]
[1767073635709,0.01072854,87202.0,87194.0,0.01146867]
[1767073635869,0.01148,87204.0,87193.0,0.01146881]
[1767073636209,0.0107286,87203.0,87193.0,0.01146881]
[1767073636429,0.0107286,87202.0,87193.0,0.01146881]
[1767073636619,0.01148,87204.0,87193.0,0.01146881]
[1767073636821,0.01072892,87203.0,87193.0,0.01146881]
[1767073637122,0.01072892,87202.0,87192.0,0.01146894]
[1767073637367,0.01148,87204.0,87192.0,0.01146894]
[1767073637660,0.01072918,87203.0,87193.0,0.01146881]
[1767073637864,0.01072918,87202.0,87192.0,0.01146894]
[1767073638062,0.02294736,87204.0,87192.0,0.01146894]
[1767073638227,0.01072918,87203.0,87192.0,0.01146894]
[1767073638433,0.01072918,87202.0,87193.0,0.01146881]
[1767073638638,0.01148,87204.0,87193.0,0.01146881]
[1767073638899,0.01072966,87203.0,87191.0,0.01146907]
[1767073639025,0.01072966,87202.0,87191.0,0.01146907]
[1767073639224,0.02294736,87204.0,87191.0,0.01146907]
[1767073639460,0.01072974,87203.0,87193.0,0.01146881]
[1767073639659,0.01072974,87202.0,87193.0,0.01146881]
[1767073639843,0.01148,87204.0,87193.0,0.01146881]
[1767073640041,0.01072967,87203.0,87192.0,0.01146894]
[1767073640245,0.01072967,87202.0,87193.0,0.01146881]
[1767073640444,0.02294736,87204.0,87192.0,0.01146894]
[1767073640773,0.01072984,87203.0,87193.0,0.01146881]
[1767073641078,0.01072984,87202.0,87192.0,0.01146894]
[1767073641276,0.02294736,87204.0,87192.0,0.01146894]
[1767073641511,0.01073004,87203.0,87192.0,0.01146894]
[1767073641793,0.01073004,87202.0,87192.0,0.01146894]
[1767073641954,0.02294736,87204.0,87192.0,0.01146894]
[1767073642294,0.01073002,87203.0,87192.0,0.01146894]
[1767073642484,0.02294736,87204.0,87192.0,0.01146894]
[1767073642485,0.01073002,87202.0,87192.0,0.01146894]
[1767073642708,0.01148,87204.0,87192.0,0.01146894]
[1767073642887,0.0107303,87203.0,87194.0,0.01146867]
[1767073643093,0.0107303,87202.0,87193.0,0.01146881]
[1767073643294,0.01073056,87201.0,87192.0,0.01146894]
[1767073643453,0.02294736,87204.0,87192.0,0.01146894]
[1767073643660,0.01073059,87203.0,87192.0,0.01146894]
[1767073643861,0.01073059,87202.0,87192.0,0.01146894]
[1767073644082,0.01073059,87201.0,87192.0,0.01146894]
[1767073644280,0.02294736,87204.0,87192.0,0.01146894]
[1767073644489,0.01073095,87203.0,87192.0,0.01146894]
[1767073644714,0.01073095,87202.0,87193.0,0.01146881]
[1767073644898,0.01073095,87201.0,87193.0,0.01146881]
[1767073645091,0.01148,87204.0,87193.0,0.01146881]
[1767073645301,0.01073079,87203.0,87193.0,0.01146881]
[1767073645498,0.01073079,87202.0,87192.0,0.01146894]
[1767073645702,0.01073079,87201.0,87193.0,0.01146881]
[1767073645904,0.02294736,87204.0,87191.0,0.01146907]
[1767073646111,0.01073105,87203.0,87192.0,0.01146894]
[1767073646289,0.01073105,87202.0,87193.0,0.01146881]
[1767073646607,0.01073105,87201.0,87193.0,0.01146881]
[1767073646807,0.01148,87204.0,87193.0,0.01146881]
[1767073647009,0.01073068,87203.0,87193.0,0.01146881]
[1767073647224,0.01073068,87202.0,87193.0,0.01146881]
[1767073647372,0.01073068,87201.0,87192.0,0.01146894]
[1767073647583,0.02294736,87204.0,87192.0,0.01146894]
[1767073647917,0.01073067,87203.0,87192.0,0.01146894]
[1767073648122,0.01073067,87202.0,87192.0,0.01146894]
[1767073648326,0.01073067,87201.0,87192.0,0.01146894]
[1767073648520,0.02294736,87204.0,87192.0,0.01146894]
[1767073648688,0.01073081,87203.0,87192.0,0.01146894]
[1767073648890,0.01073081,87202.0,87192.0,0.01146894]
[1767073649103,0.01073081,87201.0,87192.0,0.01146894]
[1767073649373,0.02294736,87204.0,87192.0,0.01146894]
[1767073649512,0.01073087,87203.0,87191.0,0.01146907]
[1767073649841,0.01073087,87202.0,87192.0,0.01146894]
[1767073650048,0.01073087,87201.0,87192.0,0.01146894]
[1767073650250,0.02294736,87204.0,87192.0,0.01146894]
[1767073650545,0.01073091,87203.0,87192.0,0.01146894]
[1767073650689,0.01073091,87202.0,87191.0,0.01146907]
[1767073650889,0.01073091,87201.0,87191.0,0.01146907]
[1767073651093,0.01146749,87203.0,87191.0,0.01146907]
[1767073651340,0.01073084,87202.0,87191.0,0.01146907]
[1767073651549,0.01073084,87201.0,87190.0,0.0114692]
[1767073651706,0.01146762,87202.0,87190.0,0.0114692]
[1767073651913,0.01073089,87201.0,87190.0,0.0114692]
[1767073652119,0.02294736,87204.0,87191.0,0.01146907]
[1767073652316,0.02219839,87203.0,87191.0,0.01146907]
[1767073652518,0.0107309,87202.0,87191.0,0.01146907]
[1767073653682,0.0107309,87202.0,87192.0,0.01146894]
[1767073653837,0.0107309,87201.0,87191.0,0.01146907]
[1767073654022,0.01148,87204.0,87192.0,0.01146894]
[1767073654368,0.01073105,87203.0,87192.0,0.01146894]
[1767073654566,0.01073105,87202.0,87192.0,0.01146894]
[1767073654873,0.01073105,87201.0,87193.0,0.01146881]
[1767073655040,0.01148,87204.0,87193.0,0.01146881]
[1767073655235,0.01073107,87203.0,87193.0,0.01146881]
[1767073655442,0.01073107,87202.0,87193.0,0.01146881]
[1767073655643,0.01073107,87201.0,87194.0,0.01146867]
[1767073655957,0.01148,87204.0,87193.0,0.01146881]
[1767073656159,0.01073109,87203.0,87193.0,0.01146881]
[1767073656364,0.01073109,87202.0,87193.0,0.01146881]
[1767073656577,0.01073109,87201.0,87193.0,0.01146881]
[1767073656766,0.01148,87204.0,87193.0,0.01146881]
[1767073656962,0.01073111,87203.0,87193.0,0.01146881]
[1767073657299,0.01073111,87202.0,87193.0,0.01146881]
[1767073657484,0.01073111,87201.0,87193.0,0.01146881]
[1767073657693,0.01148,87204.0,87193.0,0.01146881]
[1767073657895,0.01073111,87203.0,87193.0,0.01146881]
[1767073658094,0.01073111,87202.0,87193.0,0.01146881]
[1767073658322,0.01073111,87201.0,87193.0,0.01146881]
[1767073658600,0.01148,87204.0,87194.0,0.01148]
[1767073658900,0.01073106,87203.0,87194.0,0.01148]
[1767073659064,0.01073106,87202.0,87194.0,0.01148]
[1767073659263,0.01073106,87201.0,87194.0,0.01148]
[1767073659479,0.01148,87204.0,87194.0,0.01148]
[1767073659683,0.0107305,87203.0,87194.0,0.01148]
[1767073659876,0.0107305,87202.0,87194.0,0.01148]
[1767073660062,0.0107305,87201.0,87194.0,0.01148]
[1767073660277,0.01148,87204.0,87196.0,0.01146841]
[1767073660602,0.06879892,87211.0,87196.0,0.01146841]
[1767073660603,0.00229047,87203.0,87196.0,0.01146841]
[1767073660781,0.0114667,87209.0,87196.0,0.01146841]
[1767073660983,0.0114667,87209.0,87195.0,0.01146854]
[1767073661189,0.01146683,87208.0,87196.0,0.01146841]
[1767073661387,0.0114667,87209.0,87196.0,0.01146841]
[1767073661578,0.03618946,87210.0,87195.0,0.01146854]
[1767073661769,0.01146683,87208.0,87195.0,0.01146854]
[1767073662318,0.01146696,87207.0,87194.0,0.02294867]
[1767073662611,0.06880196,87207.0,87194.0,0.01148]
[1767073662808,0.01146723,87205.0,87194.0,0.01148]
[1767073664193,0.01146736,87204.0,87194.0,0.01148]
[1767073664371,0.01146723,87205.0,87194.0,0.01148]
[1767073664981,0.01146696,87207.0,87194.0,0.01148]
[1767073665201,0.01146723,87205.0,87194.0,0.01148]
[1767073668357,0.0114671,87206.0,87194.0,0.01148]
[1767073670147,0.03618932,87207.0,87194.0,0.01148]
[1767073670686,0.0114671,87206.0,87194.0,0.01148]
[1767073671046,0.01146723,87205.0,87194.0,0.010931]
[1767073671449,0.01146736,87204.0,87194.0,0.010931]
[1767073671879,0.0114671,87206.0,87194.0,0.010931]
[1767073672440,0.0114671,87206.0,87194.0,0.02239967]
[1767073672617,0.0107317,87205.0,87194.0,0.010931]
[1767073672778,0.0107317,87204.0,87194.0,0.010931]
[1767073672983,0.0107317,87203.0,87194.0,0.010931]
[1767073673184,0.0107317,87202.0,87194.0,0.010931]
[1767073673401,0.01146723,87205.0,87194.0,0.010931]
[1767073673715,0.02219905,87204.0,87194.0,0.010931]
[1767073673882,0.01073169,87203.0,87194.0,0.010931]
[1767073674076,0.01073169,87202.0,87194.0,0.010931]
[1767073674309,0.01146723,87205.0,87194.0,0.010931]
[1767073674502,0.01073167,87204.0,87194.0,0.010931]
[1767073674817,0.01073167,87203.0,87194.0,0.010931]
[1767073675037,0.01073167,87202.0,87194.0,0.010931]
[1767073675255,0.01146723,87205.0,87194.0,0.010931]
[1767073675469,0.01073171,87204.0,87194.0,0.010931]
[1767073675603,0.01073171,87203.0,87194.0,0.010931]
[1767073675802,0.01073171,87202.0,87194.0,0.010931]
[1767073676146,0.01146723,87205.0,87194.0,0.010931]
[1767073676342,0.01073171,87204.0,87194.0,0.010931]
[1767073676542,0.01073171,87203.0,87194.0,0.010931]
[1767073676689,0.01073171,87202.0,87194.0,0.010931]
[1767073676890,0.01146723,87205.0,87194.0,0.010931]
[1767073677086,0.01073169,87204.0,87194.0,0.010931]
[1767073677287,0.01073169,87203.0,87194.0,0.010931]
[1767073677502,0.01073169,87202.0,87194.0,0.010931]
[1767073677705,0.01146723,87205.0,87194.0,0.010931]
[1767073677905,0.01073169,87204.0,87194.0,0.010931]
[1767073678201,0.01073169,87203.0,87194.0,0.010931]
[1767073678405,0.01073169,87202.0,87194.0,0.010931]
[1767073678653,0.01146723,87205.0,87194.0,0.010931]
[1767073678956,0.0107317,87204.0,87194.0,0.010931]
[1767073679252,0.0107317,87203.0,87194.0,0.010931]
[1767073679457,0.0107317,87202.0,87194.0,0.010931]
[1767073679620,0.01146723,87205.0,87194.0,0.010931]
[1767073679621,0.01146736,87204.0,87194.0,0.010931]
[1767073679822,0.01073169,87203.0,87195.0,0.01148]
[1767073680002,0.02219931,87202.0,87195.0,0.01148]
[1767073680207,0.01146762,87202.0,87195.0,0.01148]
[1767073680406,0.01146775,87201.0,87195.0,0.01148]
[1767073681164,0.01146788,87200.0,87195.0,0.01148]
[1767073681365,0.01146775,87201.0,87195.0,0.01148]
[1767073682113,0.01146788,87200.0,87195.0,0.01148]
[1767073682315,0.01146775,87201.0,87195.0,0.01148]
[1767073682524,0.01146762,87202.0,87195.0,0.01148]
[1767073682962,0.01146788,87200.0,87195.0,0.01148]
[1767073683331,0.01146762,87202.0,87195.0,0.01148]
[1767073683678,0.01146788,87200.0,87195.0,0.01148]
[1767073683886,0.01146802,87199.0,87195.0,0.01148]
[1767073684082,0.01146788,87200.0,87195.0,0.01148]
[1767073686486,0.06880472,87204.0,87195.0,0.01148]
[1767073686682,0.01146762,87202.0,87195.0,0.01148]
[1767073687693,0.01146775,87201.0,87195.0,0.01148]
[1767073687851,0.01146775,87201.0,87189.0,0.01146933]
[1767073688035,0.01146775,87201.0,87195.0,0.01148]
[1767073688805,0.01146775,87201.0,87189.0,0.01146933]
[1767073689120,0.01146775,87201.0,87190.0,0.01148]
[1767073690449,0.01146762,87202.0,87190.0,0.01148]
[1767073690664,0.01146775,87201.0,87190.0,0.01148]
[1767073691042,0.01146762,87202.0,87190.0,0.01148]
[1767073691243,0.01146788,87200.0,87190.0,0.01148]
[1767073691674,0.01146788,87200.0,87190.0,0.53291723]
[1767073691980,0.01146762,87202.0,87190.0,0.53291723]
[1767073692141,0.01146775,87201.0,87190.0,0.53291723]
[1767073693563,0.01146788,87200.0,87190.0,0.53291723]
[1767073693900,0.01146775,87201.0,87190.0,0.53291723]
[1767073694496,0.01146762,87202.0,87190.0,0.53291723]
[1767073694698,0.01146749,87203.0,87190.0,0.53291723]
[1767073694921,0.01146788,87200.0,87190.0,0.01148]
[1767073695061,0.01146762,87202.0,87190.0,0.53291723]
[1767073695264,0.01146775,87201.0,87190.0,0.53291723]
[1767073696211,0.01146762,87202.0,87190.0,0.53291723]
[1767073697745,0.01146762,87202.0,87190.0,0.54438643]
[1767073698965,0.01146775,87201.0,87190.0,0.53291723]
[1767073700056,0.01146775,87201.0,87190.0,0.01148]
[1767073701818,0.01146788,87200.0,87190.0,0.01148]
[1767073702441,0.01146762,87202.0,87190.0,0.01148]
[1767073702749,0.01146762,87202.0,87190.0,0.0229492]
[1767073702959,0.01146762,87202.0,87190.0,0.01148]
[1767073703789,0.01146749,87203.0,87190.0,0.0229492]
[1767073704065,0.02220008,87202.0,87190.0,0.0229492]
[1767073704249,0.01146762,87202.0,87190.0,0.0229492]
[1767073704441,0.01146762,87202.0,87190.0,0.53291723]
[1767073704627,0.01146775,87201.0,87190.0,0.53291723]
[1767073704971,0.01146749,87203.0,87190.0,0.54438643]
[1767073705121,0.01073245,87202.0,87190.0,0.53291723]
[1767073705343,0.01146762,87202.0,87190.0,0.53291723]
[1767073705807,0.01146775,87201.0,87190.0,0.53291723]
[1767073706012,0.01146762,87202.0,87190.0,0.53291723]
[1767073706697,0.01146775,87201.0,87190.0,0.53291723]
[1767073707046,0.01146788,87200.0,87190.0,0.01148]
[1767073707243,0.01146802,87199.0,87190.0,0.01148]
[1767073707464,0.01146788,87200.0,87190.0,0.01148]
[1767073708081,0.01146788,87200.0,87187.0,0.01146959]
[1767073708381,0.01146775,87201.0,87191.0,0.01148]
[1767073708943,0.01146749,87203.0,87191.0,0.01148]
[1767073709264,0.01073247,87202.0,87191.0,0.01148]
[1767073709472,0.01146762,87202.0,87191.0,0.01148]
[1767073711810,0.01146775,87201.0,87191.0,0.01148]
[1767073713711,0.01146762,87202.0,87191.0,0.01148]
[1767073714712,0.01146775,87201.0,87188.0,0.01146946]
[1767073714920,0.01146775,87201.0,87189.0,0.01148]
[1767073715278,0.01146749,87203.0,87190.0,0.0114692]
[1767073715483,0.02220008,87202.0,87190.0,0.0114692]
[1767073715665,0.01146762,87202.0,87190.0,0.0114692]
[1767073716512,0.01146775,87201.0,87189.0,0.02294933]
[1767073716720,0.01146762,87202.0,87189.0,0.02294933]
[1767073717127,0.01146762,87202.0,87190.0,0.0114692]
[1767073717333,0.01146749,87203.0,87190.0,0.0114692]
[1767073717497,0.01073247,87202.0,87191.0,0.01146907]
[1767073717834,0.01146749,87203.0,87191.0,0.01146907]
[1767073718069,0.01073247,87202.0,87191.0,0.01146907]
[1767073718281,0.01146749,87203.0,87191.0,0.01146907]
[1767073718489,0.01073247,87202.0,87191.0,0.01146907]
[1767073718698,0.01146749,87203.0,87191.0,0.01146907]
[1767073718923,0.01073247,87202.0,87191.0,0.01146907]
[1767073719107,0.01146749,87203.0,87191.0,0.01146907]
[1767073719408,0.01073243,87202.0,87191.0,0.01146907]
[1767073719647,0.01146749,87203.0,87191.0,0.01146907]
[1767073719851,0.01073243,87202.0,87191.0,0.01146907]
[1767073720056,0.01146736,87204.0,87191.0,0.01146907]
[1767073720263,0.01073242,87203.0,87190.0,0.52143723]
[1767073720502,0.02220004,87202.0,87190.0,0.53290643]
[1767073720723,0.01146762,87202.0,87190.0,0.53290643]
[1767073720929,0.01146749,87203.0,87191.0,0.01146907]
[1767073721129,0.0107316,87202.0,87191.0,0.01146907]
[1767073721345,0.01146775,87201.0,87190.0,0.52143723]
[1767073721556,0.01146762,87202.0,87190.0,0.53290643]
[1767073723185,0.01146749,87203.0,87190.0,0.53290643]
[1767073723387,0.01073163,87202.0,87190.0,0.53290643]
[1767073723637,0.01146749,87203.0,87190.0,0.53290643]
[1767073723835,0.01073164,87202.0,87190.0,0.53290643]
[1767073724139,0.01146749,87203.0,87191.0,0.01146907]
[1767073724359,0.02219924,87202.0,87190.0,0.53290643]
[1767073724640,0.01146762,87202.0,87190.0,0.53290643]
[1767073725861,0.01146749,87203.0,87191.0,0.01146907]
[1767073726062,0.01073162,87202.0,87191.0,0.01146907]
[1767073726223,0.01146736,87204.0,87192.0,0.01146894]
[1767073726423,0.38743129,87209.0,87194.0,0.01146867]
[1767073726424,0.01073163,87203.0,87194.0,0.01146867]
[1767073726651,0.14663,87209.0,87203.0,0.000549]
[1767073726850,0.01073196,87208.0,87196.0,0.02294841]
[1767073727165,0.01073196,87207.0,87196.0,0.01148]
[1767073727314,0.01073196,87206.0,87196.0,0.01148]
[1767073727514,0.01073196,87205.0,87196.0,0.01148]
[1767073727715,0.01146683,87208.0,87196.0,0.01148]
[1767073727970,0.01072992,87207.0,87196.0,0.02294841]
[1767073728196,0.01072992,87206.0,87196.0,0.02294841]
[1767073728338,0.01072992,87205.0,87196.0,0.02294841]
[1767073728541,0.01146683,87208.0,87196.0,0.02294841]
[1767073728757,0.01072927,87207.0,87196.0,0.02294841]
[1767073728960,0.01072927,87206.0,87196.0,0.02294841]
[1767073729282,0.01072927,87205.0,87196.0,0.02294841]
[1767073729478,0.01146683,87208.0,87196.0,0.02294841]
[1767073729637,0.01072877,87207.0,87196.0,0.02294841]
[1767073729843,0.01072877,87206.0,87196.0,0.02294841]
[1767073730053,0.0001447,87212.0,87204.0,0.01146736]
[1767073730235,0.02472104,87220.0,87212.0,0.000144]
[1767073730608,0.1462147,87221.0,87210.0,0.52143723]
[1767073730748,0.1462147,87221.0,87210.0,0.59023637]
[1767073730952,0.0001447,87221.0,87211.0,0.01146644]
[1767073731274,0.0001447,87221.0,87212.0,0.01146631]
[1767073731587,0.0001447,87221.0,87210.0,0.5329038]
[1767073731810,0.0001447,87221.0,87210.0,0.52143723]
[1767073732008,0.0001447,87221.0,87209.0,0.06880015]
[1767073732196,0.0001447,87221.0,87210.0,0.01146657]
[1767073732814,0.0001983,87221.0,87210.0,0.01146657]
[1767073732979,0.0001983,87221.0,87211.0,0.01146644]
[1767073733788,0.0001983,87221.0,87212.0,0.01146631]
[1767073734013,0.0001983,87221.0,87213.0,0.01146618]
[1767073734566,0.0001983,87221.0,87214.0,0.01146604]
[1767073734691,3e-07,87221.0,87215.0,0.01146591]
[1767073735303,3e-07,87221.0,87214.0,0.01146604]
[1767073735537,3e-07,87221.0,87213.0,0.01146618]
[1767073735966,3e-07,87221.0,87214.0,0.01146604]
[1767073736167,3e-07,87221.0,87213.0,0.01146618]
[1767073736345,3e-07,87221.0,87212.0,0.01148]
[1767073737340,3e-07,87221.0,87212.0,0.02294631]
[1767073737751,3e-07,87221.0,87213.0,0.01146618]
[1767073738123,3e-07,87221.0,87214.0,0.01146604]
[1767073738331,3e-07,87221.0,87215.0,0.01146591]
[1767073739475,3e-07,87221.0,87218.0,0.01146552]
[1767073739639,3e-07,87221.0,87215.0,0.01146591]
[1767073740044,3e-07,87221.0,87216.0,0.01146578]
[1767073740244,3e-07,87221.0,87215.0,0.01146591]
[1767073740477,3e-07,87221.0,87214.0,0.01146604]
[1767073740907,3e-07,87221.0,87215.0,0.01146591]
[1767073741151,3e-07,87221.0,87217.0,0.01146565]
[1767073741584,3e-07,87221.0,87218.0,0.01146552]
[1767073741819,3e-07,87221.0,87217.0,0.01146565]
[1767073742033,3e-07,87221.0,87215.0,0.01146591]
[1767073742229,3e-07,87221.0,87216.0,0.01146578]
[1767073742451,3e-07,87221.0,87217.0,0.01146565]
[1767073742881,3e-07,87221.0,87218.0,0.01146552]
[1767073743371,0.0001447,87229.0,87223.0,0.01146486]
[1767073743596,7e-07,87229.0,87222.0,0.01146499]
[1767073744230,7e-07,87229.0,87223.0,0.01148]
[1767073752321,7e-07,87229.0,87223.0,0.02294486]
[1767073753221,7e-07,87229.0,87224.0,0.01146473]
[1767073753620,7e-07,87229.0,87223.0,0.02294486]
[1767073753621,7e-07,87229.0,87223.0,0.01148]
[1767073754277,7e-07,87229.0,87224.0,0.01146473]
[1767073755899,7e-07,87229.0,87223.0,0.02294486]
[1767073756063,7e-07,87229.0,87224.0,0.01146473]
[1767073756399,7e-07,87229.0,87223.0,0.01148]
[1767073762639,0.145872,87223.0,87213.0,0.01146618]
[1767073762842,0.14553,87223.0,87214.0,0.02294604]
[1767073763041,0.01146434,87227.0,87214.0,0.02294604]
[1767073763361,0.01146434,87227.0,87214.0,0.01148]
[1767073763655,0.01146434,87227.0,87214.0,0.02294604]
[1767073763951,0.0114642,87228.0,87214.0,0.02294604]
[1767073763952,0.0114642,87228.0,87216.0,0.01146578]
[1767073764650,0.01146477,87229.0,87217.0,0.01146565]
[1767073764851,7e-07,87229.0,87217.0,0.01146565]
[1767073765063,0.01146477,87229.0,87216.0,0.01146578]
[1767073765205,0.01146477,87229.0,87217.0,0.01146565]
[1767073765775,0.01146434,87227.0,87215.0,0.01146591]
[1767073766186,0.01146434,87227.0,87214.0,0.02294604]
[1767073766334,0.0114642,87228.0,87216.0,0.01146578]
[1767073766779,0.0114642,87228.0,87215.0,0.01146591]
[1767073767083,0.0114642,87228.0,87216.0,0.01146578]
[1767073767660,0.0114642,87228.0,87215.0,0.01146591]
[1767073768065,0.01146477,87229.0,87217.0,0.01146565]
[1767073768249,0.0114642,87228.0,87216.0,0.01146578]
[1767073768446,0.0114646,87225.0,87217.0,0.01148]
[1767073768654,0.000342,87217.0,87213.0,5.36e-05]
[1767073768862,0.06878863,87224.0,87213.0,5.36e-05]
[1767073768863,0.06878863,87224.0,87214.0,0.01148]
[1767073769683,0.01146499,87222.0,87214.0,0.01148]
[1767073770063,0.01146486,87223.0,87214.0,0.01148]
[1767073770418,0.01146473,87224.0,87214.0,0.01148]
[1767073770544,0.0114646,87225.0,87214.0,0.01148]
[1767073772105,0.01146447,87226.0,87214.0,0.01148]
[1767073772431,0.01146434,87227.0,87214.0,0.02294604]
[1767073772604,0.01146434,87227.0,87215.0,0.01146591]
[1767073774302,0.01146447,87226.0,87214.0,0.02294604]
[1767073775419,0.01146434,87227.0,87214.0,0.02294604]
[1767073775720,0.01146473,87224.0,87214.0,0.01148]
[1767073776629,0.01146486,87223.0,87214.0,0.01148]
[1767073776925,0.01146473,87224.0,87214.0,0.01148]
[1767073778177,0.01146486,87223.0,87214.0,0.01148]
[1767073778681,0.01146473,87224.0,87214.0,0.01148]
[1767073779012,0.01146486,87223.0,87214.0,0.01148]
[1767073779544,0.01146473,87224.0,87214.0,0.01148]
[1767073780319,0.01146486,87223.0,87214.0,0.01148]
[1767073780517,0.01146499,87222.0,87214.0,0.01148]
[1767073781521,0.01146512,87221.0,87214.0,0.01148]
[1767073781744,0.01146512,87221.0,87215.0,0.01148]
[1767073781953,0.01146499,87222.0,87215.0,0.01148]
[1767073782393,0.01146512,87221.0,87215.0,0.01148]
[1767073783290,0.01146473,87224.0,87215.0,0.01148]
[1767073784657,0.01146434,87227.0,87215.0,0.01148]
[1767073784859,0.0114646,87225.0,87215.0,0.01148]
[1767073786189,0.01146447,87226.0,87215.0,0.01148]
[1767073786804,0.01146434,87227.0,87215.0,0.02294591]
[1767073787015,0.02219273,87226.0,87215.0,0.01148]
[1767073787321,0.01146473,87224.0,87215.0,0.01148]
[1767073788514,0.0114646,87225.0,87215.0,0.01148]
[1767073788921,0.01146447,87226.0,87215.0,0.01148]
[1767073789438,0.01072977,87225.0,87215.0,0.01148]
[1767073789660,0.01146447,87226.0,87215.0,0.01148]
[1767073789860,0.01072979,87225.0,87215.0,0.01148]
[1767073790065,0.01146447,87226.0,87215.0,0.01148]
[1767073790267,0.01072979,87225.0,87215.0,0.01148]
[1767073790470,0.01146447,87226.0,87215.0,0.01148]
[1767073790681,0.01073037,87225.0,87215.0,0.01148]
[1767073790887,0.01146447,87226.0,87215.0,0.01148]
[1767073791091,0.01073038,87225.0,87215.0,0.01148]
[1767073791288,0.01146447,87226.0,87215.0,0.01148]
[1767073791586,0.01073118,87225.0,87215.0,0.01148]
[1767073791790,0.01146447,87226.0,87215.0,0.01148]
[1767073791994,0.01073119,87225.0,87215.0,0.01148]